[Event "Reykjavik Open 2022"]
[Site "Reykjavik"]
[Date "2022.04.06"]
[Round "1.16"]
[White "Mai, Alexander Oliver"]
[Black "Mishra, Abhimanyu"]
[Result "1/2-1/2"]
[ECO "B99"]
[WhiteElo "2207"]
[BlackElo "2505"]
[Annotator "RC"]
[PlyCount "170"]
[EventDate "2022.04.06"]
[EventCountry "ISL"]
[SourceTitle "playchess.com"]
[Source "ChessBase"]
[SourceQuality "1"]
[TimeControl "40/5400+30:1800+30"]

1. e4 {[%emt 0:00:03]} c5 {[%emt 0:00:04]} 2. Nf3 {[%emt 0:00:07]} d6 {[%emt 0:00:09]} 3. d4 {[%emt 0:00:07]} cxd4 {[%emt 0:00:07]} 4. Nxd4 {[%emt 0:00:06]} Nf6 {[%emt 0:00:16]} 5. Nc3 {[%emt 0:00:06]} a6 {[%emt 0:00:24]} 6. Bg5 {[%emt 0:00:06]} e6 {[%emt 0:01:08]} 7. f4 {[%emt 0:00:07]} Be7 {[%emt 0:00:29]} 8. Qf3 {[%emt 0:00:08]} Qc7 {[%emt 0:00:53]} 9. O-O-O {[%emt 0:00:08]} Nbd7 {[%emt 0:00:30]} 10. Bd3 {[%emt 0:00:28]} b5 {[%emt 0:01:29]} 11. Rhe1 {[%emt 0:00:19]} Bb7 {[%emt 0:01:01]} 12. Qg3 {[%emt 0:00:14]} b4 {[%emt 0:01:23]} 13. Nd5 {[%emt 0:00:17]} exd5 {[%emt 0:00:51]} 14. exd5 {[%emt 0:00:06]} Kd8 {[%emt 0:02:07]} 15. Nc6+ {[%emt 0:00:29]} Bxc6 {[%emt 0:00:26]} 16. dxc6 {[%emt 0:00:05]} Qxc6 {[%emt 0:02:33]} 17. Bxf6 {[%emt 0:00:27]} Nxf6 {[%emt 0:00:15]} 18. Qxg7 {[%emt 0:00:18]} Re8 {[%emt 0:00:10]} 19. Qxf7 {[%emt 0:02:10]} Ra7 {[%emt 0:00:46]} 20. Rxe7 {[%emt 0:00:53]} Raxe7 {[%emt 0:00:16]} 21. Qxf6 {[%emt 0:00:05]} Qc5 {[%emt 0:03:42]} 22. Bxa6 {[%emt 0:09:02]} Kc7 {[%emt 0:07:07]} 23. Qd4 {[%emt 0:07:42]} Re4 {[%emt 0:17:42]} 24. Qxc5+ {[%emt 0:03:11]} dxc5 {[%emt 0:00:10]} 25. g3 {[%emt 0:20:53]} c4 {[%emt 0:04:40]} 26. b3 {[%emt 0:06:52]} c3 {[%emt 0:02:21]} 27. Bd3 {[%emt 0:07:47]} Re1 {[%emt 0:16:09]} 28. Bxh7 {[%emt 0:06:52]} Rxd1+ {[%emt 0:06:32]} 29. Kxd1 {[%emt 0:00:36]} Rh8 {[%emt 0:00:04]} 30. Bd3 {[%emt 0:18:28]} Rxh2 {[%emt 0:00:15]} 31. g4 {[%emt 0:01:26]} Rf2 {[%emt 0:16:44]} 32. g5 {[%emt 0:04:35]} Rxf4 {[%emt 0:01:43]} 33. Ke2 {[%emt 0:00:46]} Kd6 {[%emt 0:01:03]} 34. Ke3 {[%emt 0:01:18]} Ke5 {[%emt 0:01:15]} 35. g6 {[%emt 0:07:17]} Rh4 {[%emt 0:03:22]} 36. Bc4 {[%emt 0:01:19]} Rh3+ {[%emt 0:00:47]} 37. Ke2 {[%emt 0:01:10]} Rg3 {[%emt 0:01:05]} 38. Bd3 {[%emt 0:01:39]} Kf4 {[%emt 0:06:39]} 39. Kf2 {[%emt 0:01:26]} Rf3+ {[%emt 0:01:40]} 40. Ke2 {[%emt 0:00:00]} Rg3 {[%emt 0:00:00]} 41. Kf2 {[%emt 0:03:45]} Rh3 {[%emt 0:13:34]} 42. Bc4 {[%emt 0:08:37]} Rf3+ {[%emt 0:01:04]} 43. Ke2 {[%emt 0:01:51]} Rg3 {[%emt 0:00:07]} 44. Bd3 {[%emt 0:00:37]} Rg2+ {[%emt 0:14:31]} 45. Kf1 {[%emt 0:01:13]} Rg4 {[%emt 0:00:12]} 46. Ke2 {[%emt 0:03:28]} Rh4 {[%emt 0:01:54]} 47. Bc4 {[%emt 0:01:18]} Rg4 {[%emt 0:01:02]} 48. Bd3 {[%emt 0:00:05]} Rg2+ {[%emt 0:01:19]} 49. Kf1 {[%emt 0:00:13]} Rg5 {[%emt 0:00:22]} 50. Kf2 {[%emt 0:01:30]} Ra5 {[%emt 0:01:14]} 51. Ke2 {[%emt 0:01:21]} Ra7 {[%emt 0:00:57]} 52. Bc4 {[%emt 0:02:04]} Kg5 {[%emt 0:00:47]} 53. Bd3 {[%emt 0:03:23]} Kf4 {[%emt 0:00:42]} 54. Bc4 {[%emt 0:00:34]} Kf5 {[%emt 0:00:10]} 55. Bd3+ {[%emt 0:00:21]} Ke5 {[%emt 0:00:42]} 56. Ke3 {[%emt 0:01:41]} Rd7 {[%emt 0:00:20]} 57. Bc4 {[%emt 0:00:57]} Kf5 {[%emt 0:00:37]} 58. Bd3+ {[%emt 0:00:23]} Kf6 {[%emt 0:00:09]} 59. Be4 {[%emt 0:01:14]} Rd8 {[%emt 0:00:59]} 60. Bd3 {[%emt 0:00:11]} Rd6 {[%emt 0:00:18]} 61. Be4 {[%emt 0:00:26]} Rd7 {[%emt 0:01:05]} 62. Bd3 {[%emt 0:00:06]} Rd8 {[%emt 0:00:35]} 63. Be4 {[%emt 0:00:16]} Ke5 {[%emt 0:00:22]} 64. Bd3 {[%emt 0:00:33]} Rh8 {[%emt 0:00:11]} 65. Bc4 {[%emt 0:01:10]} Rh3+ {[%emt 0:00:11]} 66. Ke2 {[%emt 0:01:03]} Kf6 {[%emt 0:00:11]} 67. Bd3 {[%emt 0:00:17]} Rg3 {[%emt 0:01:04]} 68. Be4 {[%emt 0:02:18]} Rg1 {[%emt 0:00:47]} 69. Bd3 {[%emt 0:00:43]} Rg4 {[%emt 0:00:39]} 70. Ke3 {[%emt 0:00:20]} Ke5 {[%emt 0:00:22]} 71. Kf3 {[%emt 0:00:32]} Rg5 {[%emt 0:00:18]} 72. Kf2 {[%emt 0:00:58]} Rg4 {[%emt 0:00:31]} 73. Kf3 {[%emt 0:00:15]} Rg1 {[%emt 0:00:22]} 74. Kf2 {[%emt 0:00:11]} Rg4 {[%emt 0:00:07]} 75. Kf3 {[%emt 0:00:08]} Rg5 {[%emt 0:00:06]} 76. Kf2 {[%emt 0:00:57]} Kf4 {[%emt 0:00:13]} 77. Ke2 {[%emt 0:00:31]} Rg2+ {[%emt 0:00:56]} 78. Kf1 {[%emt 0:00:06]} Kg3 {[%emt 0:00:46]} 79. Be4 {[%emt 0:01:03]} Rf2+ {[%emt 0:00:14]} 80. Ke1 {[%emt 0:00:16]} Rf4 {[%emt 0:00:40]} 81. Bd3 {[%emt 0:00:44]} Rg4 {[%emt 0:00:29]} 82. Ke2 {[%emt 0:00:11]} Kf4 {[%emt 0:00:13]} 83. Kf2 {[%emt 0:00:08]} Rh4 {[%emt 0:01:03]} 84. Bc4 {[%emt 0:00:31]} Rg4 {[%emt 0:00:23]} 85. Bd3 {[%emt 0:00:05]} Rh4 {[%emt 0:00:18]} 1/2-1/2

[Event "Reykjavik Open 2022"]
[Site "Reykjavik"]
[Date "2022.04.06"]
[Round "1.17"]
[White "Peng, Li Min"]
[Black "Ingvason, Johann"]
[Result "1-0"]
[ECO "D34"]
[WhiteElo "2498"]
[BlackElo "2183"]
[Annotator "RC"]
[PlyCount "101"]
[EventDate "2022.04.06"]
[EventCountry "ISL"]
[SourceTitle "playchess.com"]
[Source "ChessBase"]
[SourceQuality "1"]
[TimeControl "40/5400+30:1800+30"]

1. Nf3 {[%emt 0:00:03]} c5 {[%emt 0:00:51]} 2. c4 {[%emt 0:00:15]} e6 {[%emt 0:00:34]} 3. g3 {[%emt 0:00:37]} d5 {[%emt 0:00:16]} 4. cxd5 {[%emt 0:00:20]} exd5 {[%emt 0:00:06]} 5. d4 {[%emt 0:00:14]} Nf6 {[%emt 0:00:26]} 6. Bg2 {[%emt 0:00:06]} Nc6 {[%emt 0:00:34]} 7. O-O {[%emt 0:00:08]} Be7 {[%emt 0:00:50]} 8. Nc3 {[%emt 0:00:22]} h6 {[%emt 0:01:32]} 9. dxc5 {[%emt 0:07:15]} Bxc5 {[%emt 0:01:34]} 10. a3 {[%emt 0:00:03]} a5 {[%emt 0:02:35]} 11. b3 {[%emt 0:00:17]} O-O {[%emt 0:00:15]} 12. Bb2 {[%emt 0:00:04]} Bf5 {[%emt 0:02:12]} 13. Rc1 {[%emt 0:01:03]} Be7 {[%emt 0:02:17]} 14. Nd4 {[%emt 0:00:33]} Bg6 {[%emt 0:01:15]} 15. Nxd5 {[%emt 0:30:12]} Nxd5 {[%emt 0:00:26]} 16. Rxc6 {[%emt 0:00:02]} bxc6 {[%emt 0:10:43]} 17. Nxc6 {[%emt 0:00:59]} Qb6 {[%emt 0:01:29]} 18. Bxd5 {[%emt 0:00:27]} Rae8 {[%emt 0:06:52]} 19. Qa1 {[%emt 0:08:15]} Bf6 {[%emt 0:12:41]} 20. Bxf6 {[%emt 0:00:06]} gxf6 {[%emt 0:00:03]} 21. Qxf6 {[%emt 0:00:05]} Kh7 {[%emt 0:00:11]} 22. e4 {[%emt 0:00:23]} Qc5 {[%emt 0:09:35]} 23. Ne5 {[%emt 0:04:06]} Qe7 {[%emt 0:07:29]} 24. Qxe7 {[%emt 0:00:05]} Rxe7 {[%emt 0:00:01]} 25. Nc6 {[%emt 0:00:02]} Rd7 {[%emt 0:00:20]} 26. Nxa5 {[%emt 0:05:00]} f5 {[%emt 0:00:07]} 27. Nc4 {[%emt 0:00:04]} fxe4 {[%emt 0:00:33]} 28. Ne3 {[%emt 0:00:07]} Bf7 {[%emt 0:00:54]} 29. Bxe4+ {[%emt 0:00:06]} Kh8 {[%emt 0:00:13]} 30. b4 {[%emt 0:00:09]} Re7 {[%emt 0:00:27]} 31. Bc6 {[%emt 0:00:18]} Ra7 {[%emt 0:00:37]} 32. Ra1 {[%emt 0:05:59]} Bb3 {[%emt 0:06:04]} 33. b5 {[%emt 0:01:23]} Rb8 {[%emt 0:00:10]} 34. Nf5 {[%emt 0:00:13]} Kh7 {[%emt 0:02:52]} 35. Nd4 {[%emt 0:00:36]} Ba4 {[%emt 0:00:55]} 36. Rb1 {[%emt 0:00:09]} Rb6 {[%emt 0:01:13]} 37. f4 {[%emt 0:01:01]} Kg6 {[%emt 0:00:16]} 38. Kf2 {[%emt 0:00:25]} Kf6 {[%emt 0:00:02]} 39. g4 {[%emt 0:00:46]} Re7 {[%emt 0:00:40]} 40. h4 {[%emt 0:00:00]} Rc7 {[%emt 0:00:00]} 41. g5+ {[%emt 0:00:25]} Kg6 {[%emt 0:01:34]} 42. Rb4 {[%emt 0:00:57]} Ra7 {[%emt 0:00:31]} 43. f5+ {[%emt 0:00:45]} Kh7 {[%emt 0:01:18]} 44. Be4 {[%emt 0:01:08]} Bd1 {[%emt 0:00:52]} 45. f6+ {[%emt 0:00:40]} Kh8 {[%emt 0:00:09]} 46. Rc4 {[%emt 0:00:22]} Bg4 {[%emt 0:01:29]} 47. a4 {[%emt 0:00:11]} hxg5 {[%emt 0:00:50]} 48. hxg5 {[%emt 0:00:04]} Bd7 {[%emt 0:00:59]} 49. Ke3 {[%emt 0:00:28]} Kg8 {[%emt 0:00:13]} 50. Kf4 {[%emt 0:00:13]} Kf7 {[%emt 0:00:19]} 51. Ke5 {[%emt 0:00:08]} 1-0

[Event "Reykjavik Open 2022"]
[Site "Reykjavik"]
[Date "2022.04.06"]
[Round "1.18"]
[White "Domalchuk-Jonasson, Aleksandr"]
[Black "Libiszewski, Fabien"]
[Result "0-1"]
[ECO "E71"]
[WhiteElo "2162"]
[BlackElo "2505"]
[Annotator "RC"]
[PlyCount "50"]
[EventDate "2022.04.06"]
[EventCountry "ISL"]
[SourceTitle "playchess.com"]
[Source "ChessBase"]
[SourceQuality "1"]
[TimeControl "40/5400+30:1800+30"]

1. d4 {[%emt 0:00:04]} Nf6 {[%emt 0:00:06]} 2. c4 {[%emt 0:00:16]} g6 {[%emt 0:00:04]} 3. Nc3 {[%emt 0:00:22]} Bg7 {[%emt 0:00:06]} 4. e4 {[%emt 0:00:15]} d6 {[%emt 0:00:04]} 5. h3 {[%emt 0:01:01]} O-O {[%emt 0:00:12]} 6. Be3 {[%emt 0:00:30]} e5 {[%emt 0:00:19]} 7. d5 {[%emt 0:00:49]} Na6 {[%emt 0:00:11]} 8. Qd2 {[%emt 0:08:27]} Nc5 {[%emt 0:02:13]} 9. f3 {[%emt 0:00:57]} Nh5 {[%emt 0:00:39]} 10. Nge2 {[%emt 0:08:25]} f5 {[%emt 0:01:39]} 11. b4 {[%emt 0:24:00]} Nd7 {[%emt 0:04:17]} 12. g4 {[%emt 0:21:38]} fxg4 {[%emt 0:03:17]} 13. hxg4 {[%emt 0:00:16]} Nf4 {[%emt 0:00:14]} 14. a3 {[%emt 0:08:13]} a5 {[%emt 0:01:39]} 15. Rc1 {[%emt 0:02:56]} axb4 {[%emt 0:06:04]} 16. axb4 {[%emt 0:00:04]} Bf6 {[%emt 0:05:43]} 17. Rh2 {[%emt 0:10:00]} Bg5 {[%emt 0:01:55]} 18. Kf2 {[%emt 0:02:22]} Nf6 {[%emt 0:04:38]} 19. Kg1 {[%emt 0:06:42]} Bxg4 {[%emt 0:01:33]} 20. fxg4 {[%emt 0:02:19]} Nxg4 {[%emt 0:00:06]} 21. Rh1 {[%emt 0:00:50]} Nxe2+ {[%emt 0:00:12]} 22. Qxe2 {[%emt 0:00:26]} Bxe3+ {[%emt 0:00:09]} 23. Kg2 {[%emt 0:00:30]} Rf2+ {[%emt 0:00:31]} 24. Kg3 {[%emt 0:00:28]} Bf4+ {[%emt 0:01:42]} 25. Kh3 {[%emt 0:00:30]} Rxe2 {[%emt 0:00:07]} 0-1

[Event "Reykjavik Open 2022"]
[Site "Reykjavik"]
[Date "2022.04.06"]
[Round "1.19"]
[White "Stefansson, Vignir Vatnar"]
[Black "Karason, Askell O"]
[Result "1-0"]
[ECO "B51"]
[WhiteElo "2484"]
[BlackElo "2186"]
[Annotator "RC"]
[PlyCount "101"]
[EventDate "2022.04.06"]
[EventCountry "ISL"]
[SourceTitle "playchess.com"]
[Source "ChessBase"]
[SourceQuality "1"]
[TimeControl "40/5400+30:1800+30"]

1. e4 {[%emt 0:00:25]} c5 {[%emt 0:00:06]} 2. Nf3 {[%emt 0:00:45]} Nc6 {[%emt 0:00:05]} 3. Bb5 {[%emt 0:00:30]} d6 {[%emt 0:00:05]} 4. O-O {[%emt 0:00:38]} Bd7 {[%emt 0:00:04]} 5. Re1 {[%emt 0:00:51]} Nf6 {[%emt 0:00:11]} 6. c3 {[%emt 0:00:27]} a6 {[%emt 0:00:04]} 7. Bf1 {[%emt 0:00:13]} Bg4 {[%emt 0:00:05]} 8. d4 {[%emt 0:00:44]} cxd4 {[%emt 0:00:32]} 9. cxd4 {[%emt 0:00:10]} Bxf3 {[%emt 0:03:10]} 10. gxf3 {[%emt 0:01:07]} d5 {[%emt 0:00:09]} 11. Nc3 {[%emt 0:01:15]} e6 {[%emt 0:01:31]} 12. Bg5 {[%emt 0:00:12]} Be7 {[%emt 0:03:14]} 13. Bxf6 {[%emt 0:00:46]} Bxf6 {[%emt 0:01:09]} 14. exd5 {[%emt 0:01:19]} Nxd4 {[%emt 0:00:14]} 15. Re4 {[%emt 0:00:08]} Nf5 {[%emt 0:03:07]} 16. dxe6 {[%emt 0:00:49]} Qxd1 {[%emt 0:15:42]} 17. Rxd1 {[%emt 0:02:44]} Rd8 {[%emt 0:00:47]} 18. Rxd8+ {[%emt 0:13:42]} Bxd8 {[%emt 0:27:46]} 19. exf7+ {[%emt 0:00:54]} Kxf7 {[%emt 0:00:18]} 20. Bc4+ {[%emt 0:00:25]} Kf6 {[%emt 0:04:07]} 21. Bd5 {[%emt 0:01:56]} b6 {[%emt 0:00:10]} 22. Bc4 {[%emt 0:10:55]} b5 {[%emt 0:06:57]} 23. Re6+ {[%emt 0:02:01]} Kg5 {[%emt 0:00:05]} 24. Bd5 {[%emt 0:00:25]} Ba5 {[%emt 0:01:42]} 25. Ne4+ {[%emt 0:03:21]} Kf4 {[%emt 0:00:03]} 26. Ng3 {[%emt 0:03:03]} Rd8 {[%emt 0:01:04]} 27. Re4+ {[%emt 0:02:55]} Kg5 {[%emt 0:00:13]} 28. Re5 {[%emt 0:23:16]} g6 {[%emt 0:00:41]} 29. Nxf5 {[%emt 0:00:44]} gxf5 {[%emt 0:00:05]} 30. Be4 {[%emt 0:01:10]} Rd2 {[%emt 0:01:32]} 31. Rxf5+ {[%emt 0:00:12]} Kh6 {[%emt 0:00:32]} 32. Rf6+ {[%emt 0:00:14]} Kg5 {[%emt 0:00:03]} 33. Rxa6 {[%emt 0:00:19]} Bc7 {[%emt 0:01:09]} 34. Rc6 {[%emt 0:04:30]} Bd6 {[%emt 0:00:07]} 35. Bxh7 {[%emt 0:00:34]} b4 {[%emt 0:00:12]} 36. Rc2 {[%emt 0:01:54]} Rd4 {[%emt 0:01:58]} 37. Be4 {[%emt 0:00:24]} Be5 {[%emt 0:01:27]} 38. Kg2 {[%emt 0:01:03]} Rd7 {[%emt 0:00:31]} 39. Rc4 {[%emt 0:01:16]} Rd2 {[%emt 0:00:06]} 40. Rxb4 {[%emt 0:00:00]} Bd4 {[%emt 0:00:00]} 41. Kh3 {[%emt 0:02:07]} Bxb2 {[%emt 0:00:21]} 42. Rb5+ {[%emt 0:00:14]} Kf6 {[%emt 0:00:17]} 43. a4 {[%emt 0:00:28]} Rxf2 {[%emt 0:00:15]} 44. Kg3 {[%emt 0:00:10]} Rd2 {[%emt 0:00:26]} 45. a5 {[%emt 0:00:30]} Bd4 {[%emt 0:00:57]} 46. a6 {[%emt 0:00:58]} Ra2 {[%emt 0:00:14]} 47. Bb7 {[%emt 0:00:29]} Bf2+ {[%emt 0:02:13]} 48. Kg4 {[%emt 0:00:13]} Be3 {[%emt 0:00:22]} 49. h4 {[%emt 0:00:31]} Ra4+ {[%emt 0:01:31]} 50. Kh3 {[%emt 0:00:33]} Bf2 {[%emt 0:00:12]} 51. h5 {[%emt 0:00:08]} 1-0

[Event "Reykjavik Open 2022"]
[Site "Reykjavik"]
[Date "2022.04.06"]
[Round "1.20"]
[White "Wichtrup, Jan-Louis"]
[Black "Beerdsen, Thomas"]
[Result "0-1"]
[ECO "D32"]
[WhiteElo "2155"]
[BlackElo "2508"]
[Annotator "RC"]
[PlyCount "52"]
[EventDate "2022.04.06"]
[EventCountry "ISL"]
[SourceTitle "playchess.com"]
[Source "ChessBase"]
[SourceQuality "1"]
[TimeControl "40/5400+30:1800+30"]

1. Nf3 {[%emt 0:00:05]} Nf6 {[%emt 0:00:34]} 2. c4 {[%emt 0:01:18]} e6 {[%emt 0:01:19]} 3. b3 {[%emt 0:00:34]} c5 {[%emt 0:03:29]} 4. Bb2 {[%emt 0:00:12]} Nc6 {[%emt 0:00:21]} 5. e3 {[%emt 0:09:17]} a6 {[%emt 0:06:49]} 6. Be2 {[%emt 0:03:17]} d5 {[%emt 0:02:05]} 7. cxd5 {[%emt 0:00:24]} exd5 {[%emt 0:00:11]} 8. d4 {[%emt 0:00:12]} cxd4 {[%emt 0:01:58]} 9. Nxd4 {[%emt 0:00:13]} Bd6 {[%emt 0:05:32]} 10. Nc3 {[%emt 0:01:58]} O-O {[%emt 0:00:52]} 11. O-O {[%emt 0:01:04]} Re8 {[%emt 0:04:10]} 12. Bf3 {[%emt 0:06:31]} Bc7 {[%emt 0:12:41]} 13. Nce2 {[%emt 0:09:33]} Ne5 {[%emt 0:06:03]} 14. Ng3 {[%emt 0:05:05]} Qd6 {[%emt 0:10:31]} 15. Rc1 {[%emt 0:06:29]} Bd7 {[%emt 0:07:15]} 16. Qc2 {[%emt 0:18:43]} Rac8 {[%emt 0:01:01]} 17. Rfd1 {[%emt 0:00:17]} Bb8 {[%emt 0:11:14]} 18. Qe2 {[%emt 0:03:17]} Nfg4 {[%emt 0:06:13]} 19. Rxc8 {[%emt 0:02:51]} Bxc8 {[%emt 0:00:56]} 20. h3 {[%emt 0:07:27]} Nf6 {[%emt 0:03:41]} 21. Ndf5 {[%emt 0:02:47]} Qe6 {[%emt 0:03:52]} 22. Ba3 {[%emt 0:03:18]} Bd7 {[%emt 0:03:15]} 23. Nd4 {[%emt 0:00:28]} Qb6 {[%emt 0:00:21]} 24. Nf1 {[%emt 0:07:17]} Ne4 {[%emt 0:01:03]} 25. Rc1 {[%emt 0:03:39]} Qg6 {[%emt 0:01:10]} 26. Kh1 {[%emt 0:00:17]} Nd3 {[%emt 0:01:03]} 0-1

[Event "Reykjavik Open 2022"]
[Site "Reykjavik"]
[Date "2022.04.06"]
[Round "1.21"]
[White "Laurent-Paoli, Pierre"]
[Black "Decosse, Jean-Fabien"]
[Result "1-0"]
[ECO "E14"]
[WhiteElo "2483"]
[BlackElo "2156"]
[Annotator "RC"]
[PlyCount "59"]
[EventDate "2022.04.06"]
[EventCountry "ISL"]
[SourceTitle "playchess.com"]
[Source "ChessBase"]
[SourceQuality "1"]
[TimeControl "40/5400+30:1800+30"]

1. d4 {[%emt 0:00:04]} Nf6 {[%emt 0:00:11]} 2. c4 {[%emt 0:00:26]} e6 {[%emt 0:00:10]} 3. Nf3 {[%emt 0:00:09]} Bb4+ {[%emt 0:00:14]} 4. Nbd2 {[%emt 0:00:55]} O-O {[%emt 0:01:34]} 5. a3 {[%emt 0:02:36]} Bxd2+ {[%emt 0:00:11]} 6. Qxd2 {[%emt 0:00:06]} b6 {[%emt 0:00:10]} 7. e3 {[%emt 0:00:05]} Bb7 {[%emt 0:00:24]} 8. Be2 {[%emt 0:00:15]} d6 {[%emt 0:00:34]} 9. O-O {[%emt 0:00:30]} Nbd7 {[%emt 0:01:19]} 10. b4 {[%emt 0:01:24]} Ne4 {[%emt 0:00:55]} 11. Qc2 {[%emt 0:00:04]} f5 {[%emt 0:00:41]} 12. d5 {[%emt 0:00:37]} e5 {[%emt 0:03:33]} 13. Nd2 {[%emt 0:01:11]} Nxd2 {[%emt 0:05:28]} 14. Bxd2 {[%emt 0:00:22]} c5 {[%emt 0:08:31]} 15. dxc6 {[%emt 0:06:55]} Bxc6 {[%emt 0:00:08]} 16. f3 {[%emt 0:00:07]} Qe7 {[%emt 0:05:00]} 17. Rad1 {[%emt 0:17:37]} a5 {[%emt 0:14:34]} 18. Qb2 {[%emt 0:02:25]} axb4 {[%emt 0:03:56]} 19. axb4 {[%emt 0:00:45]} Ba4 {[%emt 0:19:35]} 20. Ra1 {[%emt 0:00:39]} Bc6 {[%emt 0:00:06]} 21. Rxa8 {[%emt 0:05:23]} Rxa8 {[%emt 0:00:27]} 22. Rd1 {[%emt 0:03:42]} Nf8 {[%emt 0:04:54]} 23. b5 {[%emt 0:09:14]} Be8 {[%emt 0:06:50]} 24. Bb4 {[%emt 0:00:41]} Rd8 {[%emt 0:00:20]} 25. Qa3 {[%emt 0:01:01]} f4 {[%emt 0:03:52]} 26. Rxd6 {[%emt 0:07:09]} Rxd6 {[%emt 0:00:19]} 27. Bxd6 {[%emt 0:00:04]} Qh4 {[%emt 0:03:18]} 28. exf4 {[%emt 0:01:58]} Qe1+ {[%emt 0:00:57]} 29. Bf1 {[%emt 0:00:04]} Bf7 {[%emt 0:01:45]} 30. Qa8 {[%emt 0:02:41]} 1-0

[Event "Reykjavik Open 2022"]
[Site "Reykjavik"]
[Date "2022.04.06"]
[Round "1.22"]
[White "Marie, Maxime"]
[Black "Hjartarson, Johann"]
[Result "1/2-1/2"]
[ECO "A36"]
[WhiteElo "2175"]
[BlackElo "2470"]
[Annotator "RC"]
[PlyCount "70"]
[EventDate "2022.04.06"]
[EventCountry "ISL"]
[SourceTitle "playchess.com"]
[Source "ChessBase"]
[SourceQuality "1"]
[TimeControl "40/5400+30:1800+30"]

1. c4 {[%emt 0:00:09]} g6 {[%emt 0:02:02]} 2. g3 {[%emt 0:01:30]} Bg7 {[%emt 0:00:10]} 3. Bg2 {[%emt 0:00:04]} c5 {[%emt 0:00:39]} 4. e3 {[%emt 0:00:43]} Nf6 {[%emt 0:01:45]} 5. Nc3 {[%emt 0:00:20]} O-O {[%emt 0:00:31]} 6. Nge2 {[%emt 0:00:50]} Nc6 {[%emt 0:01:00]} 7. O-O {[%emt 0:01:12]} d6 {[%emt 0:00:19]} 8. d3 {[%emt 0:01:48]} Bd7 {[%emt 0:04:59]} 9. h3 {[%emt 0:02:53]} a6 {[%emt 0:00:55]} 10. Kh2 {[%emt 0:10:18]} Rb8 {[%emt 0:00:50]} 11. f4 {[%emt 0:02:11]} b5 {[%emt 0:00:39]} 12. g4 {[%emt 0:01:51]} Na5 {[%emt 0:02:22]} 13. cxb5 {[%emt 0:12:31]} axb5 {[%emt 0:00:53]} 14. Ng3 {[%emt 0:00:32]} b4 {[%emt 0:00:48]} 15. Nce2 {[%emt 0:01:27]} Bb5 {[%emt 0:04:05]} 16. g5 {[%emt 0:09:25]} Ne8 {[%emt 0:05:55]} 17. h4 {[%emt 0:01:37]} e6 {[%emt 0:01:28]} 18. Bh3 {[%emt 0:06:47]} d5 {[%emt 0:02:14]} 19. h5 {[%emt 0:01:50]} Nd6 {[%emt 0:00:55]} 20. hxg6 {[%emt 0:05:18]} hxg6 {[%emt 0:00:48]} 21. Rh1 {[%emt 0:02:07]} Qb6 {[%emt 0:05:34]} 22. Nh5 {[%emt 0:01:44]} gxh5 {[%emt 0:00:58]} 23. Ng3 {[%emt 0:00:07]} f5 {[%emt 0:09:45]} 24. gxf6 {[%emt 0:04:00]} Rxf6 {[%emt 0:00:10]} 25. Nxh5 {[%emt 0:02:49]} Rh6 {[%emt 0:03:21]} 26. Rg1 {[%emt 0:00:41]} Rb7 {[%emt 0:00:19]} 27. e4 {[%emt 0:02:23]} dxe4 {[%emt 0:09:37]} 28. f5 {[%emt 0:01:30]} Rxh5 {[%emt 0:03:12]} 29. Qxh5 {[%emt 0:00:14]} Nxf5 {[%emt 0:00:31]} 30. Bf4 {[%emt 0:08:43]} Nd4 {[%emt 0:15:40]} 31. dxe4 {[%emt 0:03:18]} Be2 {[%emt 0:05:20]} 32. Qe8+ {[%emt 0:12:29]} Kh7 {[%emt 0:00:08]} 33. Qg6+ {[%emt 0:01:40]} Kh8 {[%emt 0:00:32]} 34. Qe8+ {[%emt 0:01:26]} Kh7 {[%emt 0:00:07]} 35. Qg6+ {[%emt 0:00:29]} Kh8 {[%emt 0:00:18]} 1/2-1/2

[Event "Reykjavik Open 2022"]
[Site "Reykjavik"]
[Date "2022.04.06"]
[Round "1.23"]
[White "Clarke, Brandon G I"]
[Black "Garbuz, Vitaliy"]
[Result "1/2-1/2"]
[ECO "B30"]
[WhiteElo "2430"]
[BlackElo "2122"]
[Annotator "RC"]
[PlyCount "113"]
[EventDate "2022.04.06"]
[EventCountry "ISL"]
[SourceTitle "playchess.com"]
[Source "ChessBase"]
[SourceQuality "1"]
[TimeControl "40/5400+30:1800+30"]

1. e4 {[%emt 0:00:05]} c5 {[%emt 0:00:05]} 2. Nf3 {[%emt 0:00:07]} Nc6 {[%emt 0:00:09]} 3. Bc4 {[%emt 0:01:38]} e6 {[%emt 0:02:26]} 4. O-O {[%emt 0:00:19]} Nf6 {[%emt 0:04:46]} 5. e5 {[%emt 0:07:07]} Ng4 {[%emt 0:10:05]} 6. Re1 {[%emt 0:05:04]} Qc7 {[%emt 0:06:13]} 7. Qe2 {[%emt 0:06:57]} f6 {[%emt 0:03:10]} 8. d4 {[%emt 0:07:28]} cxd4 {[%emt 0:04:07]} 9. exf6 {[%emt 0:00:53]} Nxf6 {[%emt 0:11:52]} 10. Nbd2 {[%emt 0:04:13]} a6 {[%emt 0:05:54]} 11. Nb3 {[%emt 0:01:35]} d5 {[%emt 0:10:56]} 12. Bd3 {[%emt 0:02:12]} Bb4 {[%emt 0:03:18]} 13. Bd2 {[%emt 0:03:20]} Bxd2 {[%emt 0:01:09]} 14. Qxd2 {[%emt 0:00:20]} O-O {[%emt 0:01:29]} 15. Qg5 {[%emt 0:10:14]} h6 {[%emt 0:03:33]} 16. Qg3 {[%emt 0:00:28]} Qxg3 {[%emt 0:01:56]} 17. fxg3 {[%emt 0:00:03]} Re8 {[%emt 0:09:43]} 18. Bg6 {[%emt 0:03:10]} Re7 {[%emt 0:00:41]} 19. Nbxd4 {[%emt 0:00:25]} Nxd4 {[%emt 0:00:17]} 20. Nxd4 {[%emt 0:00:06]} e5 {[%emt 0:00:36]} 21. h3 {[%emt 0:09:23]} Bd7 {[%emt 0:01:53]} 22. c3 {[%emt 0:00:58]} Be8 {[%emt 0:01:27]} 23. Bc2 {[%emt 0:00:39]} g6 {[%emt 0:00:34]} 24. Re2 {[%emt 0:00:47]} Kg7 {[%emt 0:00:41]} 25. Rae1 {[%emt 0:01:58]} Nd7 {[%emt 0:01:27]} 26. Nf3 {[%emt 0:03:02]} Kf6 {[%emt 0:01:25]} 27. Nh2 {[%emt 0:00:21]} e4 {[%emt 0:01:33]} 28. c4 {[%emt 0:06:42]} dxc4 {[%emt 0:00:04]} 29. Bxe4 {[%emt 0:00:11]} Nb6 {[%emt 0:06:23]} 30. Ng4+ {[%emt 0:00:54]} Kg7 {[%emt 0:00:29]} 31. Bf3 {[%emt 0:04:54]} Rxe2 {[%emt 0:00:05]} 32. Rxe2 {[%emt 0:00:01]} h5 {[%emt 0:00:28]} 33. Nf2 {[%emt 0:01:07]} Bc6 {[%emt 0:01:10]} 34. Bxc6 {[%emt 0:01:01]} bxc6 {[%emt 0:00:06]} 35. g4 {[%emt 0:07:56]} Na4 {[%emt 0:00:29]} 36. gxh5 {[%emt 0:00:59]} gxh5 {[%emt 0:00:05]} 37. Re7+ {[%emt 0:01:34]} Kf6 {[%emt 0:00:47]} 38. Rh7 {[%emt 0:00:55]} Kg6 {[%emt 0:03:02]} 39. Rc7 {[%emt 0:00:11]} Nxb2 {[%emt 0:00:07]} 40. Rxc6+ {[%emt 0:00:00]} Kf5 {[%emt 0:00:00]} 41. Kf1 {[%emt 0:12:12]} Re8 {[%emt 0:07:01]} 42. g4+ {[%emt 0:09:45]} hxg4 {[%emt 0:00:54]} 43. Nxg4 {[%emt 0:00:16]} Kf4 {[%emt 0:05:04]} 44. Nf6 {[%emt 0:08:04]} Re5 {[%emt 0:15:04]} 45. Nd7 {[%emt 0:00:51]} Ra5 {[%emt 0:01:40]} 46. Nb6 {[%emt 0:02:45]} Rxa2 {[%emt 0:00:48]} 47. Nxc4 {[%emt 0:00:06]} Nd3 {[%emt 0:01:20]} 48. Rd6 {[%emt 0:00:33]} Nc5 {[%emt 0:04:43]} 49. Rd2 {[%emt 0:03:39]} Rxd2 {[%emt 0:00:29]} 50. Nxd2 {[%emt 0:00:02]} Ke3 {[%emt 0:01:31]} 51. Ke1 {[%emt 0:00:12]} Nd3+ {[%emt 0:00:35]} 52. Kd1 {[%emt 0:00:03]} Nf2+ {[%emt 0:00:15]} 53. Kc2 {[%emt 0:00:02]} Nxh3 {[%emt 0:00:06]} 54. Kc3 {[%emt 0:00:09]} Nf4 {[%emt 0:00:22]} 55. Kb4 {[%emt 0:00:36]} Kxd2 {[%emt 0:00:09]} 56. Ka5 {[%emt 0:00:03]} Nd3 {[%emt 0:00:08]} 57. Kxa6 {[%emt 0:00:04]} 1/2-1/2